[Event "Early-Titled-Tuesday-Blitz-November-28-2023"]
[Site "Chess.com"]
[Date "2023.11.28"]
[Round "11"]
[White "Igor_Lysyj"]
[Black "grandemestregringo"]
[Result "0-1"]
[WhiteElo "2792"]
[BlackElo "2638"]
[TimeControl "180+1"]
[EndTime "10:11:57 PST"]
[Termination "grandemestregringo won by resignation"]

1. d4 {[%clk 0:03:00.1]} 1... f5 {[%clk 0:02:59.9]} 2. Nf3 {[%clk 0:02:58.7]}
2... Nf6 {[%clk 0:02:59.7]} 3. g3 {[%clk 0:02:58.3]} 3... g6 {[%clk 0:02:59.5]}
4. Bg2 {[%clk 0:02:56.2]} 4... Bg7 {[%clk 0:02:59.8]} 5. O-O {[%clk 0:02:55.7]}
5... O-O {[%clk 0:03:00.4]} 6. c4 {[%clk 0:02:55.9]} 6... d6 {[%clk 0:03:00.5]}
7. Nc3 {[%clk 0:02:55.7]} 7... Qe8 {[%clk 0:03:00.9]} 8. d5 {[%clk 0:02:54.2]}
8... Na6 {[%clk 0:03:00.6]} 9. Be3 {[%clk 0:02:53.8]} 9... Bd7 {[%clk
0:02:59.9]} 10. Bd4 {[%clk 0:02:53.2]} 10... c5 {[%clk 0:02:28.1]} 11. Bxf6
{[%clk 0:02:33.5]} 11... Bxf6 {[%clk 0:02:26.9]} 12. Qd2 {[%clk 0:02:33]} 12...
b5 {[%clk 0:02:13.9]} 13. cxb5 {[%clk 0:02:28.5]} 13... Bxb5 {[%clk 0:02:14]}
14. Rfe1 {[%clk 0:02:27.9]} 14... Rb8 {[%clk 0:02:09.7]} 15. e4 {[%clk
0:02:20.9]} 15... Qd7 {[%clk 0:01:42.3]} 16. e5 {[%clk 0:02:18.5]} 16... Bg7
{[%clk 0:01:42.5]} 17. b3 {[%clk 0:02:09.5]} 17... Nb4 {[%clk 0:01:38.8]} 18.
Nxb5 {[%clk 0:02:07.4]} 18... Rxb5 {[%clk 0:01:23.7]} 19. Bf1 {[%clk 0:02:04.6]}
19... Rb6 {[%clk 0:01:23.6]} 20. Bc4 {[%clk 0:02:03.2]} 20... f4 {[%clk
0:01:18.1]} 21. e6 {[%clk 0:01:48.7]} 21... Qe8 {[%clk 0:01:07.3]} 22. g4 {[%clk
0:01:46.3]} 22... Bxa1 {[%clk 0:01:03.8]} 23. Rxa1 {[%clk 0:01:45.4]} 23... Rf6
{[%clk 0:01:00.7]} 24. a3 {[%clk 0:01:33.2]} 24... Na6 {[%clk 0:01:00.5]} 25.
Qa5 {[%clk 0:01:31]} 25... Qc8 {[%clk 0:00:58.5]} 26. Ng5 {[%clk 0:01:26.6]}
26... f3 {[%clk 0:00:55.5]} 27. Qc3 {[%clk 0:01:16.3]} 27... Nc7 {[%clk
0:00:47.8]} 28. Re1 {[%clk 0:01:11.6]} 28... Nb5 {[%clk 0:00:41.3]} 29. Bxb5
{[%clk 0:00:54.3]} 29... Rxb5 {[%clk 0:00:41.7]} 30. Re3 {[%clk 0:00:37.8]}
30... c4 {[%clk 0:00:36.4]} 31. Ne4 {[%clk 0:00:17]} 31... Rf4 {[%clk
0:00:35.6]} 32. bxc4 {[%clk 0:00:14.7]} 32... Rb1+ {[%clk 0:00:34.7]} 33. Re1
{[%clk 0:00:15]} 33... Rxe1+ {[%clk 0:00:28.9]} 34. Qxe1 {[%clk 0:00:15.3]}
34... Qxc4 {[%clk 0:00:29.2]} 35. Ng3 {[%clk 0:00:15.5]} 35... Qxd5 {[%clk
0:00:25.2]} 36. h3 {[%clk 0:00:15.8]} 36... h5 {[%clk 0:00:20.5]} 37. gxh5
{[%clk 0:00:14.8]} 37... gxh5 {[%clk 0:00:20.7]} 38. Qb1 {[%clk 0:00:14.7]}
38... Qxe6 {[%clk 0:00:18.1]} 39. Qc1 {[%clk 0:00:14.3]} 39... Qe5 {[%clk
0:00:14.4]} 40. Qc8+ {[%clk 0:00:13.4]} 40... Kg7 {[%clk 0:00:14]} 41. Qc1
{[%clk 0:00:13.2]} 41... Kf7 {[%clk 0:00:08.4]} 42. Qb1 {[%clk 0:00:09.6]} 42...
h4 {[%clk 0:00:08.1]} 43. Qh7+ {[%clk 0:00:09.2]} 43... Ke6 {[%clk 0:00:08.7]}
44. Qg8+ {[%clk 0:00:08.8]} 44... Kd7 {[%clk 0:00:09.2]} 0-1

[Event "Early-Titled-Tuesday-Blitz-November-28-2023"]
[Site "Chess.com"]
[Date "2023.11.28"]
[Round "11"]
[White "Kotlyar_K"]
[Black "Willi_Skibbe"]
[Result "1-0"]
[WhiteElo "2636"]
[BlackElo "2302"]
[TimeControl "180+1"]
[EndTime "10:11:57 PST"]
[Termination "Kotlyar_K won by resignation"]

1. e4 {[%clk 0:03:00.9]} 1... e6 {[%clk 0:02:57.7]} 2. Nf3 {[%clk 0:03:01]} 2...
d5 {[%clk 0:02:56.7]} 3. Nc3 {[%clk 0:03:01.7]} 3... Nf6 {[%clk 0:02:55.9]} 4.
e5 {[%clk 0:03:02.2]} 4... Nfd7 {[%clk 0:02:56.3]} 5. d4 {[%clk 0:03:02.9]} 5...
c5 {[%clk 0:02:57]} 6. dxc5 {[%clk 0:03:03.8]} 6... Nc6 {[%clk 0:02:56.7]} 7.
Bf4 {[%clk 0:03:03.9]} 7... Nxc5 {[%clk 0:02:56.9]} 8. Bb5 {[%clk 0:03:04]} 8...
a6 {[%clk 0:02:53.3]} 9. Bxc6+ {[%clk 0:03:04.1]} 9... bxc6 {[%clk 0:02:54.2]}
10. O-O {[%clk 0:03:04.7]} 10... Be7 {[%clk 0:02:53.4]} 11. Nd4 {[%clk
0:03:02.4]} 11... Qb6 {[%clk 0:02:50.2]} 12. Rb1 {[%clk 0:02:57.4]} 12... a5
{[%clk 0:02:49.5]} 13. Qg4 {[%clk 0:02:54.5]} 13... g6 {[%clk 0:02:41]} 14. Bh6
{[%clk 0:02:43]} 14... Ba6 {[%clk 0:02:32.3]} 15. Rfe1 {[%clk 0:02:40.9]} 15...
Qb4 {[%clk 0:02:31.1]} 16. Qd1 {[%clk 0:02:22.5]} 16... Kd7 {[%clk 0:02:27.4]}
17. a3 {[%clk 0:02:18.5]} 17... Qc4 {[%clk 0:02:17.9]} 18. Qd2 {[%clk
0:02:11.4]} 18... Na4 {[%clk 0:02:09.3]} 19. Nxa4 {[%clk 0:02:02.7]} 19... Qxa4
{[%clk 0:02:10.2]} 20. c3 {[%clk 0:01:46.8]} 20... c5 {[%clk 0:01:57.5]} 21. Nf3
{[%clk 0:01:45.2]} 21... Rhb8 {[%clk 0:01:52.3]} 22. Bg5 {[%clk 0:01:40]} 22...
Bf8 {[%clk 0:01:51.3]} 23. Red1 {[%clk 0:01:17.3]} 23... Rb3 {[%clk 0:01:36.4]}
24. Bh4 {[%clk 0:01:11]} 24... Rab8 {[%clk 0:01:34.1]} 25. Re1 {[%clk
0:01:09.4]} 25... Qb5 {[%clk 0:01:28.5]} 26. Qf4 {[%clk 0:01:06.2]} 26... Ke8
{[%clk 0:01:26.3]} 27. Qf6 {[%clk 0:00:47.5]} 27... Qd7 {[%clk 0:01:19.4]} 28.
Ng5 {[%clk 0:00:46.6]} 28... Qe7 {[%clk 0:01:16]} 29. Nxh7 {[%clk 0:00:43.7]}
29... Qxf6 {[%clk 0:01:05.7]} 30. Nxf6+ {[%clk 0:00:44.6]} 30... Kd8 {[%clk
0:01:01.7]} 31. Nxd5+ {[%clk 0:00:42.3]} 31... Kd7 {[%clk 0:01:02.3]} 32. Nf6+
{[%clk 0:00:42.2]} 32... Kc6 {[%clk 0:01:02.5]} 33. Rbd1 {[%clk 0:00:33.5]}
33... Rxb2 {[%clk 0:01:01.2]} 34. Nd7 {[%clk 0:00:33.5]} 34... Re8 {[%clk
0:00:53.9]} 35. Nxf8 {[%clk 0:00:29.3]} 35... Rxf8 {[%clk 0:00:54.8]} 36. Rd6+
{[%clk 0:00:29.2]} 36... Kb5 {[%clk 0:00:54.7]} 37. a4+ {[%clk 0:00:27.5]} 37...
Kxa4 {[%clk 0:00:50.8]} 38. Rxa6 {[%clk 0:00:28.1]} 38... Kb5 {[%clk 0:00:51.3]}
39. Ra7 {[%clk 0:00:27.9]} 39... c4 {[%clk 0:00:44.7]} 40. h3 {[%clk 0:00:27]}
40... Kb6 {[%clk 0:00:41.6]} 41. Rd7 {[%clk 0:00:23.7]} 41... a4 {[%clk
0:00:41.6]} 42. Ra1 {[%clk 0:00:22.6]} 42... Ra8 {[%clk 0:00:41]} 43. Rd6+
{[%clk 0:00:19.8]} 43... Kc5 {[%clk 0:00:39.7]} 44. Be7 {[%clk 0:00:18.6]} 44...
Kb5 {[%clk 0:00:39.3]} 45. Rd7 {[%clk 0:00:15.3]} 45... a3 {[%clk 0:00:39.3]}
46. Rxa3 {[%clk 0:00:10.1]} 46... Rxa3 {[%clk 0:00:27.3]} 47. Bxa3 {[%clk
0:00:11]} 47... Rb3 {[%clk 0:00:24.4]} 48. Bb4 {[%clk 0:00:11.2]} 48... Rb1+
{[%clk 0:00:24.3]} 49. Kh2 {[%clk 0:00:11]} 49... Rf1 {[%clk 0:00:25.2]} 50. Kg3
{[%clk 0:00:11.4]} 50... Rd1 {[%clk 0:00:24.6]} 51. Rxf7 {[%clk 0:00:11.6]}
51... Rd3+ {[%clk 0:00:24.6]} 52. f3 {[%clk 0:00:12.3]} 52... Ka4 {[%clk
0:00:24.1]} 53. Rf6 {[%clk 0:00:12.6]} 53... Kb3 {[%clk 0:00:25]} 54. Rxe6
{[%clk 0:00:13.1]} 54... Rxc3 {[%clk 0:00:25.9]} 55. Bxc3 {[%clk 0:00:12.9]} 1-0

[Event "Early-Titled-Tuesday-Blitz-November-28-2023"]
[Site "Chess.com"]
[Date "2023.11.28"]
[Round "11"]
[White "Sconko"]
[Black "GiorgianBarbosa"]
[Result "0-1"]
[WhiteElo "2321"]
[BlackElo "2527"]
[TimeControl "180+1"]
[EndTime "10:11:58 PST"]
[Termination "GiorgianBarbosa won on time"]

1. e4 {[%clk 0:03:00.9]} 1... c5 {[%clk 0:02:56.2]} 2. Nc3 {[%clk 0:02:57.7]}
2... g6 {[%clk 0:02:56.3]} 3. d4 {[%clk 0:02:56.6]} 3... cxd4 {[%clk 0:02:55.9]}
4. Qxd4 {[%clk 0:02:57.5]} 4... Nf6 {[%clk 0:02:56.2]} 5. Nf3 {[%clk 0:02:57.3]}
5... Nc6 {[%clk 0:02:56.1]} 6. Qa4 {[%clk 0:02:56.2]} 6... d6 {[%clk 0:02:56.6]}
7. e5 {[%clk 0:02:55.4]} 7... dxe5 {[%clk 0:02:57.5]} 8. Nxe5 {[%clk 0:02:56.3]}
8... Bd7 {[%clk 0:02:58.3]} 9. Nxd7 {[%clk 0:02:53.2]} 9... Nxd7 {[%clk
0:02:59.2]} 10. Be3 {[%clk 0:02:51.1]} 10... Bg7 {[%clk 0:02:58.9]} 11. Bb5
{[%clk 0:02:40.9]} 11... O-O {[%clk 0:02:58.6]} 12. O-O {[%clk 0:02:36.9]} 12...
Nb6 {[%clk 0:02:56.7]} 13. Bxb6 {[%clk 0:02:32.6]} 13... axb6 {[%clk 0:02:57.6]}
14. Qh4 {[%clk 0:02:16.3]} 14... Ra5 {[%clk 0:02:53.2]} 15. a4 {[%clk
0:02:16.2]} 15... Nd4 {[%clk 0:02:48.7]} 16. Rad1 {[%clk 0:02:11.4]} 16... e5
{[%clk 0:02:32]} 17. Qxd8 {[%clk 0:02:01.2]} 17... Rxd8 {[%clk 0:02:32.9]} 18.
b4 {[%clk 0:01:59.7]} 18... Raa8 {[%clk 0:02:30.5]} 19. Bd3 {[%clk 0:01:38.2]}
19... Rac8 {[%clk 0:02:29.2]} 20. Nb5 {[%clk 0:01:14.2]} 20... Nxb5 {[%clk
0:02:23.1]} 21. axb5 {[%clk 0:01:07.9]} 21... f5 {[%clk 0:02:20.8]} 22. Bc4+
{[%clk 0:01:05.7]} 22... Kf8 {[%clk 0:02:18.6]} 23. Bb3 {[%clk 0:00:57.3]} 23...
e4 {[%clk 0:02:14.7]} 24. Be6 {[%clk 0:00:48.5]} 24... Rb8 {[%clk 0:01:52.4]}
25. c4 {[%clk 0:00:38.6]} 25... Bc3 {[%clk 0:01:44.8]} 26. c5 {[%clk 0:00:25.8]}
26... Ke7 {[%clk 0:01:14.9]} 27. c6 {[%clk 0:00:20.4]} 27... Rxd1 {[%clk
0:01:12.1]} 28. c7 {[%clk 0:00:20.3]} 28... Rdd8 {[%clk 0:00:49.5]} 29. cxb8=Q
{[%clk 0:00:17.6]} 29... Rxb8 {[%clk 0:00:48.8]} 30. Bd5 {[%clk 0:00:15.8]}
30... Bxb4 {[%clk 0:00:47.8]} 31. g3 {[%clk 0:00:14.3]} 31... Bc5 {[%clk
0:00:47.1]} 32. Kg2 {[%clk 0:00:13.4]} 32... Rd8 {[%clk 0:00:47.4]} 33. Bxb7
{[%clk 0:00:13.4]} 33... Rd2 {[%clk 0:00:47.3]} 34. Kg1 {[%clk 0:00:11.8]} 34...
Kd6 {[%clk 0:00:44.8]} 35. Bc6 {[%clk 0:00:11.5]} 35... Ke5 {[%clk 0:00:44.7]}
36. Bb7 {[%clk 0:00:05.5]} 36... h6 {[%clk 0:00:44.8]} 37. Bc6 {[%clk
0:00:05.9]} 37... g5 {[%clk 0:00:45.2]} 38. Be8 {[%clk 0:00:05.8]} 38... f4
{[%clk 0:00:44.8]} 39. Bc6 {[%clk 0:00:06]} 39... f3 {[%clk 0:00:42.8]} 40. Bb7
{[%clk 0:00:04.1]} 40... g4 {[%clk 0:00:33.4]} 41. Bc6 {[%clk 0:00:03.8]} 41...
e3 {[%clk 0:00:31.1]} 42. fxe3 {[%clk 0:00:03.2]} 42... Bxe3+ {[%clk 0:00:30.4]}
43. Kh1 {[%clk 0:00:03.9]} 43... Kf5 {[%clk 0:00:20.5]} 44. h3 {[%clk
0:00:03.2]} 44... h5 {[%clk 0:00:18.8]} 45. Be8 {[%clk 0:00:03]} 45... Kg5
{[%clk 0:00:18.8]} 0-1

[Event "Early-Titled-Tuesday-Blitz-November-28-2023"]
[Site "Chess.com"]
[Date "2023.11.28"]
[Round "11"]
[White "amanjazu"]
[Black "campochess"]
[Result "1-0"]
[WhiteElo "2365"]
[BlackElo "2219"]
[TimeControl "180+1"]
[EndTime "10:11:59 PST"]
[Termination "amanjazu won by resignation"]

1. e4 {[%clk 0:02:58.2]} 1... c5 {[%clk 0:02:59.9]} 2. Nc3 {[%clk 0:02:57.9]}
2... Nc6 {[%clk 0:02:59.9]} 3. g3 {[%clk 0:02:58.4]} 3... g6 {[%clk 0:02:59.8]}
4. Bg2 {[%clk 0:02:59]} 4... Bg7 {[%clk 0:03:00]} 5. d3 {[%clk 0:02:59.3]} 5...
d6 {[%clk 0:03:00.1]} 6. Be3 {[%clk 0:02:59.8]} 6... Nf6 {[%clk 0:02:59.8]} 7.
h3 {[%clk 0:03:00]} 7... Nd7 {[%clk 0:02:58]} 8. Qd2 {[%clk 0:02:59.6]} 8... h5
{[%clk 0:02:56.5]} 9. Nge2 {[%clk 0:02:58.1]} 9... b5 {[%clk 0:02:55.3]} 10.
Nxb5 {[%clk 0:02:55.8]} 10... Rb8 {[%clk 0:02:54.1]} 11. a4 {[%clk 0:02:51.9]}
11... a6 {[%clk 0:02:53.1]} 12. Nbc3 {[%clk 0:02:51]} 12... Rxb2 {[%clk
0:02:52.8]} 13. O-O {[%clk 0:02:43.7]} 13... O-O {[%clk 0:02:51.1]} 14. Rfb1
{[%clk 0:02:38.9]} 14... Rxb1+ {[%clk 0:02:47.9]} 15. Rxb1 {[%clk 0:02:39.8]}
15... Nd4 {[%clk 0:02:44.4]} 16. Nd5 {[%clk 0:02:26.3]} 16... e6 {[%clk
0:02:43.6]} 17. Ndf4 {[%clk 0:02:19.7]} 17... e5 {[%clk 0:02:12.7]} 18. Nd5
{[%clk 0:02:14]} 18... Nxe2+ {[%clk 0:02:04.6]} 19. Qxe2 {[%clk 0:02:13.6]}
19... Nf6 {[%clk 0:02:01.2]} 20. Bg5 {[%clk 0:02:13.5]} 20... Be6 {[%clk
0:02:00.9]} 21. Nb6 {[%clk 0:01:41.8]} 21... Qc7 {[%clk 0:01:55]} 22. a5 {[%clk
0:01:37.5]} 22... Nh7 {[%clk 0:01:48.8]} 23. Bd2 {[%clk 0:01:34.8]} 23... Rb8
{[%clk 0:01:35.5]} 24. c4 {[%clk 0:01:25.4]} 24... Nf8 {[%clk 0:01:35.2]} 25.
Qd1 {[%clk 0:01:19.8]} 25... Nd7 {[%clk 0:01:34.8]} 26. Na4 {[%clk 0:01:14.8]}
26... Rxb1 {[%clk 0:01:31.2]} 27. Qxb1 {[%clk 0:01:15.7]} 27... Bf6 {[%clk
0:01:24.9]} 28. Kh2 {[%clk 0:01:05.9]} 28... Bd8 {[%clk 0:01:20.9]} 29. Bf3
{[%clk 0:01:02.3]} 29... Nf8 {[%clk 0:01:20.2]} 30. Bd1 {[%clk 0:00:55.8]} 30...
Nh7 {[%clk 0:01:11.1]} 31. Nb6 {[%clk 0:00:40.3]} 31... Qe7 {[%clk 0:01:09.4]}
32. Nd5 {[%clk 0:00:34.5]} 32... Bxd5 {[%clk 0:01:08.1]} 33. cxd5 {[%clk
0:00:35.4]} 33... f5 {[%clk 0:01:06.8]} 34. Bb3 {[%clk 0:00:31.2]} 34... Qf6
{[%clk 0:00:59.3]} 35. Kg2 {[%clk 0:00:23.9]} 35... f4 {[%clk 0:00:54.3]} 36.
Bc4 {[%clk 0:00:20.4]} 36... Ng5 {[%clk 0:00:53.1]} 37. Qf1 {[%clk 0:00:13.8]}
37... Qf7 {[%clk 0:00:44.7]} 38. h4 {[%clk 0:00:12.1]} 38... f3+ {[%clk
0:00:42.9]} 39. Kh2 {[%clk 0:00:09.9]} 39... Nh7 {[%clk 0:00:42.5]} 40. Bxa6
{[%clk 0:00:08.8]} 40... Nf6 {[%clk 0:00:40.2]} 41. Bc8 {[%clk 0:00:04.5]} 41...
Ng4+ {[%clk 0:00:35.7]} 42. Bxg4 {[%clk 0:00:04.9]} 42... hxg4 {[%clk 0:00:35]}
43. Qb1 {[%clk 0:00:05.8]} 43... g5 {[%clk 0:00:26.2]} 44. Qb8 {[%clk
0:00:05.9]} 44... Qf8 {[%clk 0:00:19.2]} 45. Bxg5 {[%clk 0:00:05.7]} 45... Bxg5
{[%clk 0:00:18.3]} 46. Qxf8+ {[%clk 0:00:06.6]} 46... Kxf8 {[%clk 0:00:17.4]}
47. hxg5 {[%clk 0:00:07.5]} 1-0

[Event "Early-Titled-Tuesday-Blitz-November-28-2023"]
[Site "Chess.com"]
[Date "2023.11.28"]
[Round "11"]
[White "Nf3c5"]
[Black "Quattroporte300"]
[Result "0-1"]
[WhiteElo "2488"]
[BlackElo "2420"]
[TimeControl "180+1"]
[EndTime "10:12:00 PST"]
[Termination "Quattroporte300 won on time"]

1. d4 {[%clk 0:02:56.9]} 1... g6 {[%clk 0:02:58.5]} 2. Nf3 {[%clk 0:02:50.7]}
2... Bg7 {[%clk 0:02:58.6]} 3. e4 {[%clk 0:02:43.5]} 3... d6 {[%clk 0:02:58.6]}
4. Bc4 {[%clk 0:02:35.7]} 4... Nf6 {[%clk 0:02:57.2]} 5. Qe2 {[%clk 0:02:33.6]}
5... O-O {[%clk 0:02:56.1]} 6. e5 {[%clk 0:02:32.7]} 6... dxe5 {[%clk
0:02:53.4]} 7. dxe5 {[%clk 0:02:33.6]} 7... Nd5 {[%clk 0:02:52.9]} 8. h3 {[%clk
0:02:22.7]} 8... c6 {[%clk 0:02:51.7]} 9. O-O {[%clk 0:02:21.6]} 9... Qc7 {[%clk
0:02:42.4]} 10. Qe4 {[%clk 0:01:48.2]} 10... Bf5 {[%clk 0:02:35.5]} 11. Qh4
{[%clk 0:01:44.8]} 11... Bxe5 {[%clk 0:02:22]} 12. Nxe5 {[%clk 0:01:28.1]} 12...
Qxe5 {[%clk 0:02:21.3]} 13. Bh6 {[%clk 0:01:27.1]} 13... Re8 {[%clk 0:02:15.1]}
14. Nd2 {[%clk 0:01:27.6]} 14... Qf6 {[%clk 0:02:10.2]} 15. Bg5 {[%clk
0:01:25.9]} 15... Qxb2 {[%clk 0:02:00]} 16. Bxd5 {[%clk 0:00:57.4]} 16... cxd5
{[%clk 0:01:57.8]} 17. Bxe7 {[%clk 0:00:56.2]} 17... Nc6 {[%clk 0:01:53.9]} 18.
Bf6 {[%clk 0:00:56]} 18... Qb4 {[%clk 0:01:48.3]} 19. Qg5 {[%clk 0:00:50]} 19...
Qf8 {[%clk 0:01:44.4]} 20. c4 {[%clk 0:00:47]} 20... h6 {[%clk 0:01:39.1]} 21.
Qh4 {[%clk 0:00:44.5]} 21... d4 {[%clk 0:01:24.3]} 22. Rfe1 {[%clk 0:00:43.3]}
22... g5 {[%clk 0:01:16.7]} 23. Qg3 {[%clk 0:00:40]} 23... Re6 {[%clk
0:01:07.3]} 24. Rxe6 {[%clk 0:00:36.5]} 24... fxe6 {[%clk 0:01:06.8]} 25. Be5
{[%clk 0:00:36.4]} 25... Nxe5 {[%clk 0:01:06.1]} 26. Qxe5 {[%clk 0:00:37.3]}
26... Rd8 {[%clk 0:01:02]} 27. g4 {[%clk 0:00:34.3]} 27... Bg6 {[%clk
0:00:59.1]} 28. Qxe6+ {[%clk 0:00:34.4]} 28... Qf7 {[%clk 0:00:59.6]} 29. Qxf7+
{[%clk 0:00:30.6]} 29... Kxf7 {[%clk 0:00:51.4]} 30. Re1 {[%clk 0:00:31.5]}
30... Bd3 {[%clk 0:00:48.9]} 31. f3 {[%clk 0:00:30.7]} 31... Rc8 {[%clk
0:00:47.6]} 32. Rc1 {[%clk 0:00:30.7]} 32... b5 {[%clk 0:00:46]} 33. c5 {[%clk
0:00:30.5]} 33... b4 {[%clk 0:00:45.9]} 34. Kf2 {[%clk 0:00:30.7]} 34... a5
{[%clk 0:00:45.8]} 35. Nb3 {[%clk 0:00:30.8]} 35... a4 {[%clk 0:00:32.9]} 36.
Nxd4 {[%clk 0:00:30.4]} 36... Ke7 {[%clk 0:00:25.4]} 37. Ke3 {[%clk 0:00:30.4]}
37... Ba6 {[%clk 0:00:22.2]} 38. c6 {[%clk 0:00:25.4]} 38... Kd6 {[%clk
0:00:20.7]} 39. Nf5+ {[%clk 0:00:15.9]} 39... Kc7 {[%clk 0:00:20.4]} 40. Nxh6
{[%clk 0:00:14.2]} 40... Re8+ {[%clk 0:00:20.3]} 41. Kd4 {[%clk 0:00:13.8]}
41... Re2 {[%clk 0:00:19.4]} 42. Rb1 {[%clk 0:00:13.1]} 42... Rxa2 {[%clk
0:00:13.2]} 43. Rxb4 {[%clk 0:00:13.2]} 43... a3 {[%clk 0:00:13.1]} 44. Ra4
{[%clk 0:00:12.9]} 44... Bb5 {[%clk 0:00:13.7]} 45. Ra5 {[%clk 0:00:12.4]} 45...
Kxc6 {[%clk 0:00:14]} 46. Kc3 {[%clk 0:00:04.6]} 46... Rf2 {[%clk 0:00:12.8]}
47. Kb4 {[%clk 0:00:04.2]} 47... Rxf3 {[%clk 0:00:11.6]} 0-1

[Event "Early-Titled-Tuesday-Blitz-November-28-2023"]
[Site "Chess.com"]
[Date "2023.11.28"]
[Round "11"]
[White "Rud_Makarian"]
[Black "Hikaru"]
[Result "0-1"]
[WhiteElo "3008"]
[BlackElo "3219"]
[TimeControl "180+1"]
[EndTime "10:12:02 PST"]
[Termination "Hikaru won by checkmate"]

1. d4 {[%clk 0:03:00]} 1... g6 {[%clk 0:02:59.3]} 2. c4 {[%clk 0:02:59.9]} 2...
Bg7 {[%clk 0:02:59.1]} 3. Nf3 {[%clk 0:03:00.1]} 3... c5 {[%clk 0:02:56.1]} 4.
d5 {[%clk 0:02:59]} 4... b5 {[%clk 0:02:52.2]} 5. cxb5 {[%clk 0:02:55]} 5... a6
{[%clk 0:02:50.8]} 6. bxa6 {[%clk 0:02:51.8]} 6... Nf6 {[%clk 0:02:48.8]} 7. Nc3
{[%clk 0:02:50]} 7... Bxa6 {[%clk 0:02:48.8]} 8. e4 {[%clk 0:02:49.8]} 8... Bxf1
{[%clk 0:02:48.8]} 9. Kxf1 {[%clk 0:02:50.3]} 9... d6 {[%clk 0:02:49.5]} 10. g3
{[%clk 0:02:50.5]} 10... O-O {[%clk 0:02:49.5]} 11. Kg2 {[%clk 0:02:50.8]} 11...
Qb6 {[%clk 0:02:50]} 12. a4 {[%clk 0:02:48]} 12... Na6 {[%clk 0:02:49.9]} 13.
Nd2 {[%clk 0:02:43.1]} 13... Nb4 {[%clk 0:02:40.1]} 14. Qe2 {[%clk 0:02:30.5]}
14... Nc2 {[%clk 0:02:32.8]} 15. Ra2 {[%clk 0:02:18.2]} 15... Nd4 {[%clk
0:02:31.6]} 16. Qd3 {[%clk 0:02:16.3]} 16... Nd7 {[%clk 0:02:31]} 17. Nc4 {[%clk
0:02:12]} 17... Qa6 {[%clk 0:02:31.1]} 18. Rd1 {[%clk 0:02:05.4]} 18... Rfb8
{[%clk 0:02:30.4]} 19. Bg5 {[%clk 0:02:02.8]} 19... Rb4 {[%clk 0:02:28.3]} 20.
Na3 {[%clk 0:01:50.1]} 20... Qb7 {[%clk 0:02:17.2]} 21. Qb1 {[%clk 0:01:40.9]}
21... Nb6 {[%clk 0:02:10.1]} 22. Nc2 {[%clk 0:01:34]} 22... Rb3 {[%clk
0:02:08.3]} 23. Nxd4 {[%clk 0:01:21.5]} 23... cxd4 {[%clk 0:02:09.2]} 24. Qc2
{[%clk 0:01:22.1]} 24... Rb4 {[%clk 0:02:07]} 25. a5 {[%clk 0:01:08.9]} 25...
Nc4 {[%clk 0:02:06.1]} 26. Ne2 {[%clk 0:00:44.5]} 26... Nxb2 {[%clk 0:02:02.9]}
27. Rxd4 {[%clk 0:00:39.9]} 27... Bxd4 {[%clk 0:00:37.5]} 28. Nxd4 {[%clk
0:00:38.9]} 28... Rxd4 {[%clk 0:00:38.4]} 29. Rxb2 {[%clk 0:00:39.4]} 29... Qd7
{[%clk 0:00:38.9]} 30. Be3 {[%clk 0:00:37.5]} 30... Ra4 {[%clk 0:00:38.4]} 31.
Bb6 {[%clk 0:00:36.5]} 31... Rc8 {[%clk 0:00:33.8]} 32. Qd3 {[%clk 0:00:35.1]}
32... Rcc4 {[%clk 0:00:33.5]} 33. a6 {[%clk 0:00:27.1]} 33... Rcb4 {[%clk
0:00:23.2]} 34. Rxb4 {[%clk 0:00:22.8]} 34... Rxb4 {[%clk 0:00:24.1]} 35. a7
{[%clk 0:00:23.3]} 35... Ra4 {[%clk 0:00:21.3]} 36. Qc2 {[%clk 0:00:20.7]} 36...
Kf8 {[%clk 0:00:19.3]} 37. Qb2 {[%clk 0:00:14.6]} 37... f6 {[%clk 0:00:18.8]}
38. Qc2 {[%clk 0:00:13.4]} 38... Kf7 {[%clk 0:00:14.8]} 39. h4 {[%clk
0:00:14.2]} 39... h5 {[%clk 0:00:14.8]} 40. Qb3 {[%clk 0:00:11.9]} 40... Ra6
{[%clk 0:00:14.1]} 41. Qc4 {[%clk 0:00:10.6]} 41... Qa4 {[%clk 0:00:13.8]} 42.
Qc8 {[%clk 0:00:05.1]} 42... Qxe4+ {[%clk 0:00:13.8]} 43. Kh2 {[%clk 0:00:05.8]}
43... Ra1 {[%clk 0:00:12.4]} 44. f3 {[%clk 0:00:02.7]} 44... Qe2+ {[%clk
0:00:10.8]} 45. Kh3 {[%clk 0:00:03.1]} 45... Rh1# {[%clk 0:00:09.8]} 0-1